Cogmind - Beta 13 @@@ ROGUE MODE // 2024.04.29 @ 17:10:14 Player: tartine Result: Destroyed by as-07040 with Assembled Heavy Rifle Performance ------------- Evolutions (0) 0 Regions Visited (2) 400 Robots Destroyed (28) 140 Value Destroyed (466) 466 Prototype IDs (0) 0 Alien Tech Used (0) 0 Bonus (78) 78 TOTAL SCORE: 1084 Bonus ------- Follower Combat Kills 78 Cogmind --------- Core Integrity 0/250 Matter 300/300 Energy 85/100 System Corruption 7% Temperature Cool (2) Movement Core (200) Ox3 Location -10/Mines Parts ------- > --- POWER (1) -------- (None) > --- PROPULSION (2) --- (None) > --- UTILITY (2) ------ Medium Storage Unit > --- WEAPON (2) ------- (None) > --- INVENTORY (10) --- Light Nuclear Core Improved Heat Sink Visual Processing Unit Signal Interpreter Heavy Battle Rifle Hammer Peak State ------------ > --- POWER ------------ Light Nuclear Core > --- PROPULSION ------- Wheel Wheel > --- UTILITY ---------- Medium Storage Unit Sensor Array > --- WEAPON ----------- Medium Laser Light Cannon > --- INVENTORY -------- Ion Engine Wheel Improved Heat Sink Visual Processing Unit Signal Interpreter Grenade Launcher Hammer [Rating: 10] Favorites ----------- Power Ion Engine Engine Ion Engine Power Core Light Nuclear Core Propulsion Wheel Wheel Wheel Utility Sensor Array Device Sensor Array Storage Medium Storage Unit Weapon Medium Laser Energy Gun Medium Laser Ballistic Cannon Light Cannon Launcher Grenade Launcher Build | -11 -10 -10 ------- Run | Yrd Mat Min Slots Evolved . | . . . Power . | . . . Propulsion . | . . . Utility . | . . . Weapon . | . . . Parts Attached 22 | 10 7 5 Power 2 | 1 . 1 Engine 1 | 1 . . Core 1 | . . 1 Reactor . | . . . Propulsion 11 | 5 4 2 Treads . | . . . Leg . | . . . Wheel 11 | 5 4 2 Hover . | . . . Flight . | . . . Utility 4 | 2 2 . Device 2 | 1 1 . Storage 2 | 1 1 . Processor . | . . . Hackware . | . . . Protection . | . . . Artifact . | . . . Weapon 5 | 2 1 2 Energy Gun 3 | 2 . 1 Energy Cannon . | . . . Ballistic Gun . | . . . Ballistic Cannon 1 | . 1 . Launcher 1 | . . 1 Special Weapon . | . . . Impact Weapon . | . . . Slashing Weapon . | . . . Piercing Weapon . | . . . Special Melee Weapon . | . . . Unidentified Prototypes . | . . . Parts Lost 9 | . . 9 Power 1 | . . 1 Propulsion 4 | . . 4 Utility 1 | . . 1 Weapon 3 | . . 3 Highest Loss Streak 8 | . . 8 To Critical Strikes . | . . . Average Slot Usage (%) 99 | . 100 98 Engine 7 | . 14 . Core 5 | . . 13 Wheel 27 | . 28 27 Device 14 | . 14 14 Storage 14 | . 14 14 Energy Gun 16 | . 20 12 Ballistic Cannon 10 | . 7 13 Naked Turns . | . . . Heaviest Build 22 | 14 21 22 Greatest Support 32 | 32 20 20 Greatest Overweight (x) 2 | 1 1 2 Average Overweight (x) . | . . . Largest Inventory Capacity 10 | 8 10 10 Average Capacity 9 | 7 9 10 Most Carried 8 | 5 8 8 Average Carried 6 | 2 5 7 Final Capacity 10 | 8 10 10 Final Carried 7 | 4 7 6 Class Distribution -------------------- 100% | Mutant Dominant Class ---------------- Mutant | -10/Materials Mutant | -10/Mines Resources | -11 -10 -10 ----------- Run | Yrd Mat Min Matter Collected 606 | 300 155 151 Remotely . | . . . Salvage Created 796 | 245 299 252 Parts 56 | 19 19 18 Haulers Intercepted . | . . . Recyclers Shooed . | . . . Parts Field Recycled . | . . . Retrieved Matter . | . . . Parts Self-Destructed . | . . . Prevented . | . . . Kills | -11 -10 -10 ------- Run | Yrd Mat Min Combat Hostiles Destroyed 15 | . 7 8 Guns 5 | . 5 . Cannons 6 | . 2 4 AOE 4 | . . 4 Classes Destroyed 9 | 3 4 2 Worker 4 | 2 2 . Builder 1 | . . 1 Tunneler 8 | 5 . 3 Recycler 1 | 1 . . Watcher 3 | . 3 . Swarmer 3 | . 3 . Grunt 7 | . 3 4 Subdweller 1 | . 1 . Assembled 4 | . . 4 Best Kill Streak 4 | 4 3 4 Combat Bots Only 4 | . 2 4 Max Kills in Single Turn 1 | 1 1 1 Gunslinging . | . . . Exploded 1 | . . 1 Melee . | . . . Uniques/NPCs Destroyed . | . . . Combat | -11 -10 -10 -------- Run | Yrd Mat Min Hostile Shots Fired 68 | . 34 34 Missed 17 | . 7 10 Damage Taken 917 | . 332 585 Core 255 | . 97 158 Absorbed by Shields . | . . . Core Remaining (%) 100 | 100 . . Volleys Fired 70 | 14 32 24 Largest 2 | 2 2 2 Hottest 90 | 90 90 85 Shots Fired 136 | 28 64 44 Gun 92 | 28 44 20 Cannon 39 | . 20 19 Launcher 5 | . . 5 Special . | . . . Kinetic 39 | . 20 19 Thermal 92 | 28 44 20 Explosive 5 | . . 5 Electromagnetic . | . . . Robot Hit Streak 9 | 6 8 9 Robot Miss Streak 3 | 2 3 2 Penetration Max . | . . . Secondary Targets . | . . . Shots Hit Robots 81 | 15 40 26 Core Hits 53 | 9 17 27 Critical Kills . | . . . Critical Parts Destroyed . | . . . Critical Strikes 3 | . 3 . Burn 1 | . 1 . Blast 2 | . 2 . Melee Attacks . | . . . Impact . | . . . Slashing . | . . . Piercing . | . . . Sneak Attacks . | . . . Combat Hostiles . | . . . Follow-up Attacks . | . . . Damage Inflicted 1323 | 181 535 607 Guns 716 | 181 345 190 Cannons 381 | . 190 191 Explosions 226 | . . 226 Melee . | . . . Ramming . | . . . Kinetic 381 | . 190 191 Thermal 716 | 181 345 190 Explosive 226 | . . 226 Electromagnetic . | . . . Impact . | . . . Slashing . | . . . Piercing . | . . . Highest Corruption 7 | . 1 7 Average Corruption 1 | . 1 1 Corruption Purged . | . . . Corruption Blocked . | . . . Effects 6 | . 4 2 Message Errors 3 | . 2 1 Matter Fused 2 | . 1 1 Energy Discharges 1 | . 1 . Overload Shots . | . . . Overflow Damage 16 | . . 16 Projectiles . | . . . Explosions 16 | . . 16 Melee . | . . . Knockbacks 5 | . 2 3 Impact . | . . . Kinetic 5 | . 2 3 Secondary . | . . . Self-Inflicted Damage 58 | . . 58 Shots 2 | . . 2 Rammed . | . . . Targets Rammed . | . . . Kicked . | . . . Crushed . | . . . Highest Temperature 174 | 100 174 168 Average Temperature 55 | 46 60 53 Received Heat Transfer 149 | . 72 77 Siege Activations . | . . . Robots Corrupted . | . . . Combat Hostiles . | . . . Parts Fried . | . . . Impact Corruptions . | . . . Robots Melted . | . . . Combat Hostiles . | . . . Parts Melted 5 | 4 1 . Heat Transferred 2113 | 495 1063 555 Parts Sabotaged . | . . . Parts Stolen . | . . . Parts Stripped . | . . . Power Chain Reactions . | . . . Alert | -11 -10 -10 ------- Run | Yrd Mat Min Peak Influence 200 | 40 200 191 Initial 51 | . 26 51 Average 97 | 16 100 111 Maximum Alert Level 1 | . 1 . Low Security (%) 98 | 100 97 100 Level 1 1 | . 2 . Level 2 . | . . . Level 3 . | . . . Level 4 . | . . . Level 5 . | . . . High Security . | . . . Max Security . | . . . Squads Dispatched . | . . . Investigation . | . . . Extermination . | . . . Reinforcement . | . . . Assault . | . . . Garrison . | . . . Intercept . | . . . Searches Triggered . | . . . Construction Impeded . | . . . Haulers Reinforced . | . . . Active Scanning Responses . | . . . Cargo Convoy Interrupts . | . . . Stealth | -11 -10 -10 --------- Run | Yrd Mat Min Distress Signals 2 | . 2 . Communications Jammed . | . . . Distress Signals . | . . . Times Spotted 34 | . 17 17 Peak Tracking Total 6 | . 4 6 Tactical Retreats 6 | . 4 2 Traps | -11 -10 -10 ------- Run | Yrd Mat Min Traps Triggered 1 | . 1 . Indirectly . | . . . Trap Hack Attempts . | . . . Triggered . | . . . Disarmed . | . . . Reprogrammed . | . . . Reused . | . . . Traps Extracted . | . . . Installed . | . . . Triggered . | . . . Machines | -11 -10 -10 ---------- Run | Yrd Mat Min Machines Disabled . | . . . Max in Single Turn . | . . . Machines Repaired . | . . . Machines Dismantled . | . . . Machines Sabotaged . | . . . Overloaded Fab Kills . | . . . Hacking | -11 -10 -10 --------- Run | Yrd Mat Min Machines Accessed 8 | . 8 . Terminals 8 | . 8 . Fabricators . | . . . Repair Stations . | . . . Recycling Units . | . . . Scanalyzers . | . . . Garrison Access . | . . . Total Hacks 20 | . 20 . Successful 8 | . 8 . Failed 12 | . 12 . Catastrophic . | . . . Database Lockouts . | . . . Manual 18 | . 18 . Terminals 20 | . 20 . Fabricators . | . . . Repair Stations . | . . . Recycling Units . | . . . Scanalyzers . | . . . Garrison Access . | . . . Terminal Hacks 3 | . 3 . Robot Analysis 1 | . 1 . Branch Access Points 1 | . 1 . Terminal Index 1 | . 1 . Fabricator Hacks . | . . . Repair Station Hacks . | . . . Recycling Unit Hacks . | . . . Scanalyzer . | . . . Garrison Access Hacks . | . . . Unauthorized Hacks 5 | . 5 . Terminals 5 | . 5 . Botnet 5 | . 5 . Fabricators . | . . . Repair Stations . | . . . Recycling Units . | . . . Scanalyzers . | . . . Garrison Access . | . . . Data Cores Recovered . | . . . Used . | . . . Hacking Detections 6 | . 6 . Full Trace Events 1 | . 1 . Feedback Events . | . . . Feedback Blocked . | . . . Robot Schematics Acquired . | . . . Robots Built . | . . . Authchips . | . . . Time . | . . . Total Robot Build Rating . | . . . Part Schematics Acquired . | . . . Parts Built . | . . . Authchips . | . . . Time . | . . . Total Part Build Rating . | . . . Parts Repaired . | . . . Time . | . . . Parts Recycled . | . . . Recycled Matter . | . . . Retrieved Matter . | . . . Retrieved Components . | . . . Parts Scanalyzed . | . . . Part Schematics Acquired . | . . . Parts Damaged . | . . . Bothacking | -11 -10 -10 ------------ Run | Yrd Mat Min Used RIF Installer . | . . . Robots Hacked . | . . . Non-combat . | . . . Combat . | . . . Robot Hacks Applied . | . . . Relay Couplers Released . | . . . Fabnet Peak Effective % . | . . . Robots Rewired . | . . . Allies Hacked . | . . . Hacks Repelled . | . . . Allies | -11 -10 -10 -------- Run | Yrd Mat Min Total Allies 2 | . . 2 Largest Group 2 | . . 2 Highest-Rated Group 44 | . . 44 Highest-Rated Ally 31 | . . 31 Total Orders . | . . . Ally Attacks 12 | . . 12 Total Damage 146 | . . 146 Kills 2 | . . 2 Allies Corrupted 1 | . . 1 Allies Melted . | . . . Intel | -11 -10 -10 ------- Run | Yrd Mat Min Robot Analysis Total 1 | . 1 . Derelict Logs Recovered 1 | . . 1 Drone Launches . | . . . Drone Recoveries . | . . . Exploration | -11 -10 -10 ------------- Run | Yrd Mat Min Turns Passed 1295 | 122 639 534 Spaces Moved 994 | 64 483 447 Core 4 | 4 . . Treads . | . . . Legs . | . . . Wheels 990 | 60 483 447 Hover . | . . . Flight . | . . . Fastest Speed 50 | 50 80 80 Average Speed 91 | 90 88 94 Slowest Speed 110 | 100 95 110 Overloaded Moves . | . . . Propulsion Burnouts . | . . . Robots Hopped . | . . . Cave-ins Triggered . | . . . Exploration Rate (%) 49 | 3 81 64 Regions Visited 2 Branch Regions 1 Pre-discovered Areas . | . . . Known Exits Taken 1 | . 1 . Unknown Exits Taken 1 | 1 . . Scrap Searched 1 | . . 1 Spaces Dug . | . . . Terrain Destroyed 32 | . . 32 Melee . | . . . Projectile . | . . . AOE 32 | . . 32 Terrain Rammed . | . . . Walls Destroyed . | . . . Machines Disabled . | . . . Actions | -11 -10 -10 --------- Run | Yrd Mat Min Total 1239 | 96 629 514 Wait 121 | . 90 31 Move 992 | 63 482 447 Hop . | . . . Pick Up 18 | 6 8 4 Fast Attach 9 | 7 2 . Attach 3 | . . 3 Detach . | . . . Swap 10 | 3 5 2 Drop 16 | 3 10 3 Fire 70 | 14 32 24 Melee . | . . . Ram . | . . . Kick . | . . . Crush . | . . . Escape Stasis . | . . . Rewire . | . . . Trap . | . . . Miscellaneous . | . . . Route ------- -11/Scrapyard -10/Materials (discovered 4 exits: [*Mat x2] / *Min x2) -10/Mines (discovered 1 exit: [*Mat]) History --------- Turn | Location | Event 18 | -11/Scrapyard | Discovered new exit (range 15) 123 | -11/Scrapyard | Entered Materials 130 | -10/Materials | Identified exit to Mines 314 | -10/Materials | Build established: Mutant 405 | -10/Materials | Discovered new exit (range 16) 607 | -10/Materials | Discovered new exit (range 8) 623 | -10/Materials | Derelicts attacked the area 762 | -10/Materials | Entered Mines 881 | -10/Mines | Discovered new exit (range 15) 1039 | -10/Mines | Learned Materials stockpile data 1126 | -10/Mines | A weapon hastily lodged in a ceiling crevice suddenly fell to the ground 1232 | -10/Mines | Assembled infested the area 1282 | -10/Mines | Core integrity fell below 50% 1296 | -10/Mines | Core integrity fell below 20% 1296 | -10/Mines | Destroyed by as-07040 with Assembled Heavy Rifle Last Messages --------------- 01284_ Knocked back. 01284_ U-05 Engineer lays Concrete. 01286_ The unstable cave ceiling collapses. 01286_ U-05 Engineer builds a Wall. 01287_ Lgt. Nuclear Core destroyed. 01290_ U-05 Engineer builds a Wall. 01292_ Sensor Array destroyed. 01292_ Acquired 61 matter. 01293_ The unstable cave ceiling collapses. 01294_ Acquired 10 matter. 01294_ as-43182 destroyed. 01294_ Grenade Launcher destroyed. 01294_ Destroyed Grenade Launcher. 01294_ Wheel destroyed. 01294_ Destroyed Wheel. 01294_ Wheel destroyed. 01294_ Destroyed Wheel. 01294_ U-05 Engineer lays Concrete. 01295_ Med. Laser destroyed. 01296_ U-05 Engineer builds a Wall. Map ----- +----------------------------------------------------+ | ?# #?????## = ######### #?????? | | ?# ##??????## %#???????# #?????? | | ## ##????????# #???????# #?????? | | ######????## #???????# #?####? | | ## ## ##????## #???????# ### ## | | ## #?????## #???????# ## | | ### ###### #??????## ##???????# | | ??#####????## ##?####??###????????# | | ???????????## #?## ##????????????## | | ??????????## #?# ##????????????# | | ?????????## """ #?# #######??????## # | | ????????## """ #?# ##??????## # | | ???????## """ #??# #???????#### # | | ??????## """ #??# #??????????# # | | ??????# ##### ## ##??????????# | | ??????# ##### # # ######???????????# | | ??????# ###???## ##???????????????#### | | ??????# ##?????## # #???????????????#### | | ?????## #?##?### ## #??####?????????#!% | | ?????# #?# # ### ##?## ##????????#!## | | ?????# #### # ##?## ##??# ##??????## #? | | ?????## # #??#####???# ##????## ## | | ????# %! ########????# ##??## # | | ????# a = =% ###### ! #### | | ????## a = % =k! | | ##### a a@ r uk ## | | ## ###### k# #### | | # ##u ######????# ## ####??## | | ##### #### ##?????????# ### ##??????## | | ????# ## ##??????????# #?#####????????# | | ????## ##### ##???????????# #??????????????? | | ?????#####???# #????????????# #??????????????? | | ?????????????## #????????????# ??????????????? | | ??????????????## ????????????? ??????????????? | | ???????????????# "????????????? ??????????????? | | ??????????????? "????????????? ?????????????? | | ??????????????? "???????????? ?????????????? | | ?????????????? ????????????? ?????????????? | | ???????????????##????????????? ?????????????? | | ??????????????????????????????? ??????????????? | | ?????????????????????????????????????????????????? | | ?????????????????????????????????????????????????? | | ?????????????????????????????????????????????????? | | ?????????????????????????????????????????????????? | | ?????????????????????????????????????????????????? | | ?????????????????????????????????????????????????? | | ?????????????????????????????????????????????????? | | ?????????????????????????????????????????????????? | | ?????????????????????????????????????????????????? | | ?????????????????????????????????????????????????? | +----------------------------------------------------+ Best States ------------- Heat Dissipation 25 Energy Generation 14 Energy Capacity 250 Matter Stores 300 Matter Capacity 300 Sight Range 16 Robot Scan Range 14 Terrain Scan Range 16 Terrain Scan Density 10 Evasion (%) 44 Item Schematics ----------------- None Robot Schematics ------------------ None Fabricated ------------ Nothing Alien Tech Used ----------------- None Achievements -------------- None Challenges ------------ None Game ------ Seed ConstructThermoelectricBank Manual? 0 Play Time 00:15:19 Cumulative 34.7 hours Start 2024.04.29 @ 16:58:53 End 2024.04.29 @ 17:10:14 Sessions 1 Manual Loads 0 Difficulty Rogue Special Mode None Game No. 46 Rogue 46 Adventurer 0 Explorer 0 Win Type - Total 1 Types 1/0/0/0/0/0/0/0/0 Lore% 31 Gallery% 38 Achievement% 32 Wizard Run 0 Options --------- Layout 1 ASCII 0 Keyboard 0 Movement Mouse Keybinds 0 Fullscreen 1 Font 24/Smallcaps Map View 50x35 Zoom Use 0% Tactical HUD 1 Map Filters NONE Filters NONE Steam 1 RUN: b61b52c0-6e05-4af2-b68f-6ec797ced58b